bitfinex-derivatives/quotes_ETHF0:USTF0_20241104
["timestamp","ask_amount","ask_price","bid_price","bid_amount"]
[1730679816752,0.36713,2452.3,2452.2,0.80383]
[1730679816947,3.03540282,2452.4,2452.2,0.80383]
[1730679817150,0.36713,2452.3,2452.2,0.80383]
[1730679817452,3.03540282,2452.4,2452.2,0.80383]
[1730679817655,0.36713,2452.3,2452.2,0.80383]
[1730679818651,2.66828282,2452.4,2452.2,0.80383]
[1730679818652,3.03540282,2452.4,2452.2,0.80383]
[1730679820150,3.03540282,2452.4,2452.2,0.4367]
[1730679820453,3.03540282,2452.4,2452.3,0.36713]
[1730679820653,3.03540282,2452.4,2452.2,0.4367]
[1730679820850,3.03540282,2452.4,2452.2,0.80383]
[1730679821159,2.66828282,2452.4,2452.2,0.4367]
[1730679821456,2.66828282,2452.4,2452.3,0.36713]
[1730679825454,4.13758083,2452.4,2452.3,0.36713]
[1730679827258,1.46929801,2452.4,2452.3,0.36713]
[1730679830258,1.83640801,2452.4,2452.3,0.36713]
[1730679830759,1.46929801,2452.4,2452.3,0.36713]
[1730679831562,1.83640801,2452.4,2452.3,0.36713]
[1730679832760,1.46929801,2452.4,2452.3,0.36713]
[1730679833262,7.77558083,2452.5,2452.2,0.4367]
[1730679833559,5.47439801,2452.5,2452.4,0.36711]
[1730679833763,5.47439801,2452.5,2452.2,0.4367]
[1730679834061,5.47439801,2452.5,2452.3,0.36712]
[1730679834765,0.36711,2452.4,2452.3,0.36712]
[1730679834968,5.47440801,2452.5,2452.3,0.36712]
[1730679835166,0.36711,2452.4,2452.3,0.36712]
[1730679836357,1.89949801,2452.5,2452.2,0.4367]
[1730679836559,2.26659801,2452.5,2452.4,0.36711]
[1730679837368,0.36712,2452.4,2452.3,0.36711]
[1730679839569,0.36712,2452.4,2452.2,0.4367]
[1730679839570,4.56778083,2452.5,2452.2,0.4367]
[1730679839869,4.93489083,2452.5,2452.4,0.36711]
[1730679840965,2.66828282,2452.6,2452.5,0.3671]
[1730679841165,2.66828282,2452.8,2452.5,8.2088]
[1730679841367,3.55678282,2453.0,2452.6,1.46929801]
[1730679841568,2.66828282,2453.1,2453.0,0.36702]
[1730679841767,5.13499801,2453.3,2453.2,0.36699]
[1730679841768,3.09258282,2453.3,2453.2,0.36699]
[1730679841976,6.78006721,2453.6,2453.2,4.67709801]
[1730679841977,2.66828282,2453.5,2453.2,4.67709801]
[1730679842265,5.87608282,2453.6,2453.5,0.36695]
[1730679842474,3.55678282,2453.8,2453.7,0.36692]
[1730679842769,4.50446083,2454.0,2453.9,0.36689]
[1730679843069,4.50446083,2454.0,2453.5,4.67709801]
[1730679843070,0.36689,2453.9,2453.6,0.36693]
[1730679843268,0.36689,2453.9,2453.7,0.3669]
[1730679843462,3.672,2454.1,2453.6,0.4252]
[1730679843463,1.83620801,2453.8,2453.6,0.79212]
[1730679843669,1.83619801,2453.8,2453.7,0.36692]
[1730679843874,1.46929801,2453.8,2453.7,0.36692]
[1730679845076,0.36692,2453.7,2453.5,0.36695]
[1730679845266,1.46929801,2453.6,2453.5,0.36695]
[1730679845575,5.49560801,2453.8,2453.6,0.36692]
[1730679846171,1.46929801,2453.9,2453.4,1.46929801]
[1730679846370,5.96536801,2454.1,2453.9,0.36688]
[1730679847069,5.59849801,2454.1,2453.9,0.36688]
[1730679847672,0.36688,2454.0,2453.8,0.4327]
[1730679847976,0.36688,2454.0,2453.8,0.7996]
[1730679848163,5.59849801,2454.1,2453.8,0.7996]
[1730679848475,5.96536801,2454.1,2453.8,0.7996]
[1730679848670,2.75756801,2454.1,2453.8,0.7996]
[1730679848866,5.59849801,2454.1,2453.8,0.4327]
[1730679849063,5.96535801,2454.1,2453.8,0.79959]
[1730679849268,4.49606,2454.1,2453.8,0.79959]
[1730679849665,3.18159585,2454.0,2453.4,3.2078]
[1730679849878,4.1292,2454.1,2453.4,3.57475]
[1730679849879,0.36692,2453.7,2453.4,3.57475]
[1730679850174,0.36692,2453.7,2453.3,0.4499]
[1730679850175,0.36695,2453.5,2453.3,0.36697]
[1730679850365,0.888,2453.6,2453.3,0.36697]
[1730679850366,1.25494,2453.6,2453.3,0.36697]
[1730679850565,0.36695,2453.5,2453.3,0.36697]
[1730679850871,0.4491,2453.6,2453.5,0.36695]
[1730679854272,0.4491,2453.6,2453.2,0.4245]
[1730679854475,0.4491,2453.6,2453.5,0.36695]
[1730679855484,0.81603,2453.6,2453.5,0.36695]
[1730679855884,0.81603,2453.6,2453.2,0.4245]
[1730679856080,0.36697,2453.4,2453.2,0.36699]
[1730679856392,0.36697,2453.4,2453.2,0.36698]
[1730679856690,0.36698,2453.3,2453.2,0.36698]
[1730679857775,0.36697,2453.4,2453.1,0.4499]
[1730679857976,0.80916,2453.5,2453.3,0.36696]
[1730679858180,0.36696,2453.4,2453.3,0.36696]
[1730679858477,0.4422,2453.5,2453.2,0.4598]
[1730679858685,0.80915,2453.5,2453.3,0.36698]
[1730679858874,0.80915,2453.5,2453.2,0.4598]
[1730679859077,0.80915,2453.5,2453.4,0.36696]
[1730679859578,0.36697,2453.4,2453.3,0.36697]
[1730679860580,0.4422,2453.5,2453.3,0.36697]
[1730679860787,0.4422,2453.5,2453.2,0.4598]
[1730679860987,0.36696,2453.4,2453.2,0.82678]
[1730679861384,0.36696,2453.4,2453.3,0.36698]
[1730679861690,0.4422,2453.5,2453.4,0.36696]
[1730679861888,0.80915,2453.5,2453.2,0.4598]
[1730679862088,0.80915,2453.5,2453.3,0.36696]
[1730679863385,0.80915,2453.5,2453.3,0.36698]
[1730679866594,0.36696,2453.4,2453.2,0.82679]
[1730679866793,0.4422,2453.5,2453.0,3.2078]
[1730679866794,4.54118585,2453.5,2453.0,3.2078]
[1730679866994,0.367,2453.2,2453.0,3.57482]
[1730679867191,0.36701,2453.1,2453.0,3.57482]
[1730679867886,0.36701,2453.1,2453.0,3.2078]
[1730679868083,0.36701,2453.1,2453.0,3.57482]
[1730679868289,0.36701,2453.1,2453.0,0.36702]
[1730679868900,0.36704,2452.9,2452.8,0.36705]
[1730679870092,0.36703,2453.0,2452.9,0.36703]
[1730679870297,3.6467,2453.4,2452.6,7.68269585]
[1730679870298,0.36702,2453.1,2453.0,0.36702]
[1730679870595,0.36703,2453.0,2452.9,0.36703]
[1730679870790,4.56412,2453.4,2452.6,7.68269585]
[1730679870997,0.36702,2453.1,2452.7,0.36707]
[1730679871294,0.36702,2453.0,2452.9,0.36702]
[1730679872094,0.36702,2453.1,2453.0,0.36702]
[1730679872492,0.36704,2452.9,2452.8,0.36705]
[1730679872692,1.26663,2453.0,2452.9,0.36704]
[1730679873793,0.36704,2452.9,2452.8,0.36704]
[1730679873987,1.26663,2453.0,2452.9,0.36704]
[1730679874191,0.8996,2453.0,2452.9,0.36704]
[1730679874592,1.26662,2453.0,2452.9,0.36704]
[1730679876094,0.36698,2453.3,2452.9,4.0768]
[1730679876394,0.36698,2453.3,2453.2,0.36698]
[1730679876801,1.46902471,2453.4,2453.1,0.4337]
[1730679876991,0.36698,2453.3,2453.2,0.36699]
[1730679877608,5.04379471,2453.4,2453.3,0.36698]
[1730679877789,5.04379471,2453.4,2453.2,0.36698]
[1730679877991,4.67682471,2453.4,2453.2,0.36698]
[1730679878193,0.36698,2453.3,2453.2,0.36698]
[1730679878601,4.67682471,2453.4,2453.1,0.4337]
[1730679878898,5.04379471,2453.4,2453.2,0.36698]
[1730679879310,4.67682471,2453.4,2453.2,0.36698]
[1730679879496,0.36698,2453.3,2453.2,0.36698]
[1730679880000,0.36698,2453.3,2453.1,0.4337]
[1730679880001,5.54502471,2453.3,2452.8,3.2078]
[1730679880299,1.83604471,2453.1,2452.9,0.36704]
[1730679880502,0.36702,2453.0,2452.9,0.36704]
[1730679880692,2.33862471,2453.1,2452.9,0.36704]
[1730679880893,2.70564471,2453.1,2452.9,0.36704]
[1730679881089,0.367,2453.2,2453.1,0.36701]
[1730679881293,1.46902471,2453.3,2452.8,3.2078]
[1730679881294,0.36702,2453.1,2452.9,1.26393]
[1730679881594,0.36702,2453.1,2453.0,0.36702]
[1730679881996,0.36702,2453.1,2452.9,1.26392]
[1730679882198,0.36702,2453.1,2453.0,0.36702]
[1730679882897,1.46902471,2453.3,2453.0,0.36702]
[1730679883297,0.36701,2453.1,2453.0,0.36702]
[1730679884202,4.13730753,2453.3,2453.0,0.36702]
[1730679884402,0.367,2453.2,2453.0,0.36702]
[1730679884597,0.36701,2453.1,2453.0,0.36702]
[1730679885704,0.36701,2453.1,2452.9,1.26392]
[1730679885905,0.36701,2453.1,2453.0,0.36702]
[1730679886102,7.34510753,2453.3,2453.0,0.36702]
[1730679886401,0.36701,2453.1,2452.9,0.8969]
[1730679886603,0.36702,2453.1,2452.9,1.26393]
[1730679887799,0.36702,2453.0,2452.9,1.26393]
[1730679888008,0.80402,2453.0,2452.9,1.26393]
[1730679888411,0.80402,2453.0,2452.9,0.8969]
[1730679889709,0.437,2453.0,2452.9,1.26394]
[1730679889900,0.80402,2453.0,2452.9,1.26394]
[1730679892808,0.80402,2453.0,2452.9,0.8969]
[1730679893007,0.80402,2453.0,2452.9,0.80504]
[1730679893707,0.80402,2453.0,2452.9,0.438]
[1730679894009,0.80402,2453.0,2452.9,0.80504]
[1730679895111,0.437,2453.0,2452.7,0.8677]
[1730679895315,0.36705,2452.8,2452.7,1.23475]
[1730679895812,0.4517,2452.9,2452.7,0.8677]
[1730679896014,0.81875,2452.9,2452.8,0.36705]
[1730679899019,0.4517,2452.9,2452.8,0.36705]
[1730679899216,0.81874,2452.9,2452.8,0.36705]
[1730679902517,0.4517,2452.9,2452.8,0.36705]
[1730679902927,0.437,2453.0,2452.9,0.36704]
[1730679903216,0.437,2453.0,2452.7,2.33672471]
[1730679903217,3.03530282,2453.1,2452.7,2.33672471]
[1730679903420,2.66828282,2453.1,2453.0,0.36702]
[1730679903722,3.03529282,2453.1,2453.0,0.36702]
[1730679903919,3.03529282,2453.1,2453.0,0.79482]
[1730679907626,4.13730753,2453.1,2452.7,1.23475]
[1730679907822,2.6655919,2452.9,2452.8,0.36704]
[1730679908319,2.6655919,2453.0,2452.9,0.36704]
[1730679908526,2.6655919,2453.0,2452.9,0.9241391]
[1730679908828,3.0326119,2453.0,2452.9,0.9241391]
[1730679909129,2.6655919,2453.0,2452.9,0.92419198]
[1730679909624,2.6655919,2453.0,2452.9,2.39331151]
[1730679911420,2.6655919,2453.0,2452.9,1.83606471]
[1730679911618,2.6655919,2453.0,2452.9,2.39356159]
[1730679911827,2.6655919,2453.0,2452.9,2.39356411]
[1730679912626,3.20532721,2453.2,2453.1,0.36701]
[1730679912828,3.2078,2453.3,2453.1,0.36701]
[1730679912829,3.20532721,2453.3,2453.2,0.36699]
[1730679913035,3.20532721,2453.3,2453.2,0.79459]
[1730679913333,4.10651841,2453.4,2453.3,0.36698]
[1730679913334,3.57229721,2453.4,2453.3,0.36698]
[1730679913525,3.20532721,2453.4,2453.2,0.4276]
[1730679913720,0.36698,2453.3,2453.2,0.79458]
[1730679913930,0.36698,2453.3,2453.2,1.35220569]
[1730679914325,3.20532721,2453.4,2453.2,0.98522569]
[1730679914520,3.20532721,2453.4,2453.3,0.36698]
[1730679914930,3.20532721,2453.5,2453.2,0.4276]
[1730679915140,0.36696,2453.4,2453.3,0.36697]
[1730679915331,0.36696,2453.4,2453.2,0.4276]
[1730679915532,0.36696,2453.4,2453.3,0.36698]
[1730679917433,3.57227721,2453.5,2453.4,0.36696]
[1730679918433,3.20532721,2453.5,2453.2,0.4276]
[1730679918743,0.36696,2453.4,2453.3,0.36697]
[1730679920133,0.36696,2453.4,2453.2,0.4276]
[1730679920134,3.57227721,2453.5,2453.4,0.36696]
[1730679920526,3.57227721,2453.5,2453.3,0.36697]
[1730679920725,3.20532721,2453.5,2453.3,0.36697]
[1730679920933,0.36696,2453.4,2453.2,0.79458]
[1730679921336,0.36696,2453.4,2453.3,0.36698]
[1730679921832,0.36696,2453.4,2453.2,0.79458]
[1730679922329,2.6664529,2453.3,2453.2,0.79458]
[1730679922736,2.6664529,2453.3,2453.2,1.35173791]
[1730679924335,2.6664529,2453.3,2453.2,6.89676262]
[1730679924537,4.08222721,2453.6,2453.2,10.62886285]
[1730679924538,2.6664529,2453.6,2453.2,10.62886285]
[1730679924739,2.6664529,2453.6,2453.5,1.83597471]
[1730679925043,5.8742529,2453.7,2453.6,0.36693]
[1730679925227,5.8742529,2453.7,2453.6,1.25813]
[1730679925428,5.8742529,2453.7,2453.6,5.77343]
[1730679925632,3.2078,2453.7,2453.6,5.77343]
[1730679925831,2.6664529,2453.9,2453.8,0.3669]
[1730679926232,2.6664529,2453.9,2453.7,1.46902471]
[1730679926233,2.6664529,2454.0,2453.9,0.36689]
[1730679926536,6.3223529,2454.1,2454.0,0.36687]
[1730679926840,5.8742529,2454.1,2454.0,0.36687]
[1730679927043,2.6664529,2454.2,2454.0,4.9868]
[1730679927234,2.6664529,2454.3,2454.2,0.36684]
[1730679927433,0.4407,2454.4,2454.1,1.46902471]
[1730679927434,0.4407,2454.4,2454.3,0.36683]
[1730679928335,2.6664529,2454.5,2454.4,0.36681]
[1730679928637,0.81489,2454.6,2454.5,0.3668]
[1730679929132,0.3668,2454.5,2454.4,0.36681]
[1730679929733,0.3668,2454.5,2454.3,1.46902471]
[1730679929929,0.3668,2454.5,2454.0,2.38062471]
[1730679929930,1.46902471,2454.4,2454.0,2.38062471]
[1730679930157,0.36685,2454.2,2454.0,2.28758471]
[1730679931038,0.36685,2454.2,2454.0,0.4517]
[1730679931342,0.4593,2454.4,2454.2,0.36683]
[1730679931647,3.2078,2454.5,2454.2,1.46902471]
[1730679931834,0.4481,2454.6,2454.4,0.3668]
[1730679932029,0.81489,2454.6,2454.4,0.3668]
[1730679932635,0.81489,2454.6,2454.2,1.46902471]
[1730679932636,0.3668,2454.5,2454.3,0.36682]
[1730679932936,0.4481,2454.6,2454.3,0.36682]
[1730679932937,0.36681,2454.4,2454.3,0.36682]
[1730679933137,0.36682,2454.4,2454.2,0.36683]
[1730679933535,0.36682,2454.4,2454.0,1.92072471]
[1730679933738,0.36682,2454.4,2454.3,0.36683]
[1730679934039,0.79371,2454.5,2454.3,0.36683]
[1730679934641,0.79371,2454.5,2454.3,0.36681]
[1730679934843,0.36681,2454.4,2454.3,0.36681]
[1730679935143,0.4269,2454.5,2454.0,1.92072471]
[1730679935435,0.79371,2454.5,2454.3,0.36682]
[1730679935639,0.36681,2454.4,2454.3,0.36682]
[1730679936541,0.4269,2454.5,2454.3,0.36682]
[1730679936542,0.79371,2454.5,2454.3,0.36682]
[1730679937037,0.79371,2454.5,2454.4,0.36681]
[1730679938139,0.79371,2454.5,2454.1,0.4501]
[1730679938340,0.79371,2454.5,2454.3,0.36682]
[1730679938737,0.79371,2454.5,2454.2,0.36684]
[1730679938942,0.79371,2454.5,2454.3,0.36681]
[1730679939142,0.79371,2454.5,2454.4,0.36681]
[1730679939547,0.4269,2454.5,2454.3,0.36682]
[1730679939842,0.36681,2454.4,2454.3,0.36682]
[1730679940739,0.4269,2454.5,2454.1,0.4501]
[1730679941054,0.36683,2454.3,2454.2,0.36684]
[1730679941342,0.4269,2454.5,2454.2,0.36684]
[1730679941542,0.36682,2454.4,2454.3,0.36683]
[1730679942734,0.79371,2454.5,2454.4,0.36681]
[1730679943243,0.36681,2454.5,2454.4,0.36681]
[1730679947142,0.4481,2454.6,2454.2,1.46902471]
[1730679947642,0.3668,2454.5,2454.4,0.3668]
[1730679947848,0.4481,2454.6,2454.5,0.3668]
[1730679948346,0.8149,2454.6,2454.4,0.3668]
[1730679948548,0.4481,2454.6,2454.4,0.3668]
[1730679948847,0.81489,2454.6,2454.4,0.3668]
[1730679949049,0.81489,2454.6,2454.2,1.46902471]
[1730679949349,0.81489,2454.6,2454.5,0.3668]
[1730679951451,0.81489,2454.6,2454.2,1.46902471]
[1730679951653,0.81489,2454.6,2454.4,0.3668]
[1730679952662,1.46902471,2454.5,2454.1,0.8757]
[1730679952954,0.36682,2454.4,2454.3,0.36682]
[1730679953752,4.67682471,2454.5,2454.1,0.8757]
[1730679954051,3.2078,2454.2,2454.1,0.79246]
[1730679954250,3.57464,2454.2,2454.1,0.79246]
[1730679954444,4.03644,2454.2,2454.1,0.79246]
[1730679955047,4.03644,2454.2,2454.1,0.4256]
[1730679955248,3.6696,2454.2,2454.0,0.81856]
[1730679955451,5.13862471,2454.2,2453.8,0.4588]
[1730679955649,0.36691,2453.8,2453.6,4.43972]
[1730679955848,0.36691,2453.8,2453.7,0.36692]
[1730679956149,5.54422471,2453.8,2453.3,0.36697]
[1730679956348,5.54422471,2453.8,2453.2,5.56662471]
[1730679956349,0.8637,2453.7,2453.2,5.56662471]
[1730679956550,4.43843,2453.7,2453.5,0.36694]
[1730679956851,1.23063,2453.7,2453.5,0.36694]
[1730679957447,0.36693,2453.6,2453.5,0.36694]
[1730679958250,0.8637,2453.7,2453.5,0.36694]
[1730679958455,1.23062,2453.7,2453.6,0.36693]
[1730679958755,0.3669,2453.9,2453.8,0.3669]
[1730679960757,0.3669,2453.9,2453.7,1.70831]
[1730679961857,0.10242749,2454.0,2453.7,1.70831]
[1730679962153,0.3669,2453.8,2453.7,1.70831]
[1730679962555,0.3669,2453.8,2453.7,1.3414]
[1730679962855,8.75202471,2453.8,2453.2,1.46902471]
[1730679963059,8.75202471,2453.8,2453.3,0.4576]
[1730679963060,1.46902471,2453.6,2453.3,0.4576]
[1730679963259,0.36696,2453.4,2453.3,0.4576]
[1730679963464,0.4461,2453.5,2453.3,0.4576]
[1730679963853,0.4461,2453.5,2453.4,0.36696]
[1730679964156,0.4461,2453.5,2453.3,1.92662471]
[1730679964347,0.81305,2453.5,2453.3,2.29359471]
[1730679965257,2.38712471,2453.7,2453.3,1.92662471]
[1730679965258,0.36694,2453.6,2453.3,1.92662471]
[1730679965461,0.36694,2453.6,2453.5,1.83597471]
[1730679965962,0.36694,2453.6,2453.5,1.46902471]
[1730679967562,0.36694,2453.6,2453.5,1.83597471]
[1730679968256,0.4561,2453.7,2453.5,0.36695]
[1730679968454,0.4561,2453.7,2453.6,0.36693]
[1730679968756,0.4561,2453.7,2453.3,1.92662471]
[1730679968757,1.46902471,2453.8,2453.3,5.13442471]
[1730679968955,0.36693,2453.6,2453.5,0.36694]
[1730679969559,0.36693,2453.7,2453.5,0.36694]
[1730679970062,0.36695,2453.6,2453.4,0.36696]
[1730679970256,0.36695,2453.5,2453.4,0.36696]
[1730679971160,3.57474,2453.6,2453.4,0.36695]
[1730679971465,0.36694,2453.6,2453.4,0.36695]
[1730679971664,0.36695,2453.5,2453.4,0.36695]
[1730679973174,0.36694,2453.6,2453.5,0.36694]
[1730679973464,0.36694,2453.6,2453.4,0.36695]
[1730679973658,0.36694,2453.6,2453.5,0.9168]
[1730679974862,0.36696,2453.5,2453.3,2.29359471]
[1730679975172,0.36695,2453.5,2453.4,0.36696]
[1730679976366,0.36695,2453.5,2453.3,0.82457]
[1730679977361,0.36695,2453.5,2453.4,0.36696]
[1730679979264,0.36696,2453.4,2453.3,0.4576]
[1730679979668,0.36696,2453.4,2453.3,0.82458]
[1730679979860,0.4509,2453.6,2453.3,0.4576]
[1730679980061,0.36696,2453.5,2453.4,0.36695]
[1730679980655,4.0999,2453.8,2453.3,0.4576]
[1730679980861,0.36694,2453.6,2453.5,0.36694]
[1730679981269,0.36695,2453.5,2453.4,0.36695]
[1730679983268,5.56892471,2453.8,2453.3,0.4576]
[1730679983456,0.36696,2453.4,2453.3,0.82457]
[1730679983862,0.79896,2453.4,2453.3,0.82457]
[1730679984667,0.79896,2453.4,2453.3,0.4576]
[1730679985266,0.79896,2453.4,2453.1,1.2273]
[1730679985267,0.36699,2453.2,2453.1,1.2273]
[1730679985467,0.36699,2453.2,2453.1,0.8814]
[1730679986070,0.36699,2453.2,2453.1,0.4615]
[1730679987170,0.36699,2453.2,2453.1,0.82851]
[1730679997574,0.36699,2453.3,2453.2,0.36698]
[1730679997769,0.8695,2453.4,2453.1,0.8285]
[1730679997770,0.36699,2453.2,2453.1,0.8285]
[1730679999063,0.36699,2453.3,2453.2,0.36698]
[1730679999975,0.36699,2453.2,2453.1,0.4615]
[1730680000676,0.36699,2453.2,2453.1,0.82851]
[1730680000870,3.02076733,2453.2,2453.1,0.82851]
[1730680001463,0.36702,2453.0,2452.9,1.26833]
[1730680001668,0.36702,2453.0,2452.9,0.99794852]
[1730680001864,0.36704,2452.9,2452.8,0.422]
[1730680002676,0.36707,2452.7,2452.6,0.36707]
[1730680002876,0.36707,2452.7,2452.6,0.97891992]
[1730680003075,0.36707,2452.7,2452.6,0.422]
[1730680003376,0.36708,2452.6,2452.5,1.2497]
[1730680003579,0.83088,2452.6,2452.5,1.80648693]
[1730680003967,0.4531,2452.7,2452.5,1.43938693]
[1730680004169,0.36707,2452.7,2452.6,0.36706]
[1730680005874,1.93282471,2452.9,2452.5,0.8826]
[1730680006082,1.83607471,2452.9,2452.8,0.36705]
[1730680006279,0.36708,2452.7,2452.6,0.36707]
[1730680006577,0.36706,2452.8,2452.7,0.36706]
[1730680008578,0.36707,2452.7,2452.6,0.36707]
[1730680009080,0.36706,2452.8,2452.7,0.36705]
[1730680013083,1.46902471,2452.9,2452.5,0.8826]
[1730680013283,0.36707,2452.7,2452.6,0.36707]
[1730680013776,1.83608471,2452.8,2452.7,0.36707]
[1730680017889,0.36707,2452.7,2452.6,0.4624]
[1730680018189,9.21492471,2452.7,2452.3,0.36712]
[1730680018375,9.21492471,2452.7,2452.2,0.81764]
[1730680018376,0.36713,2452.3,2452.2,0.81764]
[1730680018575,1.46902471,2452.4,2452.3,0.36712]
[1730680018576,0.36712,2452.4,2452.3,0.36712]
[1730680019486,0.36711,2452.4,2452.2,0.81763]
[1730680019685,0.79961,2452.4,2452.3,0.36713]
[1730680020474,0.36713,2452.3,2452.2,0.81763]
[1730680020681,0.4325,2452.4,2452.3,0.36713]
[1730680020884,0.36713,2452.3,2452.2,0.81763]
[1730680021990,0.4325,2452.4,2452.3,0.36713]
[1730680021991,0.79962,2452.4,2452.3,0.36713]
[1730680022179,0.4325,2452.4,2452.2,0.4505]
[1730680022383,0.36713,2452.3,2452.2,0.81763]
[1730680025181,1.83615471,2452.3,2452.2,0.81763]
[1730680027082,1.83615471,2452.3,2452.2,0.4505]
[1730680027783,1.83615471,2452.3,2452.2,0.81764]
[1730680027977,1.83615471,2452.3,2452.2,0.4505]
[1730680031691,0.3672,2451.9,2451.8,0.36719]
[1730680031892,1.83622471,2451.9,2451.8,0.8173]
[1730680032081,1.83622471,2451.9,2451.8,0.4501]
[1730680032791,1.83622471,2451.9,2451.8,0.8173]
[1730680032981,1.83622471,2451.9,2451.8,0.4501]
[1730680033587,1.46902471,2452.0,2451.7,0.4387]
[1730680033789,0.36719,2451.9,2451.8,0.81109]
[1730680034106,3.99947,2452.1,2452.0,0.36717]
[1730680035589,3.57497,2452.1,2452.0,0.36717]
[1730680035796,3.2078,2452.1,2452.0,0.36717]
[1730680036189,3.57496,2452.1,2452.0,0.36717]
[1730680036388,3.57496,2452.1,2451.9,0.4297]
[1730680036589,0.36717,2452.0,2451.9,0.79687]
[1730680036887,0.36717,2452.0,2451.9,0.4297]
[1730680037087,2.28369471,2452.0,2451.9,0.79689]
[1730680037289,2.28369471,2452.0,2451.9,0.4297]
[1730680038194,2.28369471,2452.0,2451.9,0.79689]
[1730680038986,2.28369471,2452.0,2451.9,0.4297]
[1730680039388,0.36719,2451.9,2451.8,0.4439]
[1730680039696,0.36719,2451.9,2451.6,0.36722]
[1730680039697,0.36722,2451.7,2451.6,0.36722]
[1730680039895,1.83623471,2451.8,2451.7,0.36721]
[1730680041289,0.36722,2451.7,2451.6,0.36722]
[1730680041796,1.83623471,2451.8,2451.7,0.36722]
[1730680042500,2.29632471,2451.9,2451.5,4.5432]
[1730680042711,1.92912471,2451.9,2451.5,4.5432]
[1730680043094,0.36721,2451.8,2451.7,0.36721]
[1730680043899,0.3672,2451.8,2451.6,0.36723]
[1730680044100,1.92912471,2451.9,2451.6,0.36723]
[1730680044101,0.36722,2451.7,2451.6,0.36723]
[1730680044696,0.36723,2451.6,2451.5,1.3354]
[1730680044995,0.36732,2451.1,2451.0,0.36732]
[1730680045201,0.36729,2451.2,2451.1,0.4628]
[1730680045499,1.83631471,2451.2,2451.1,0.4628]
[1730680046299,0.36739,2450.6,2450.5,0.36739]
[1730680046500,1.46902471,2450.6,2450.4,0.4281]
[1730680046703,1.83642471,2450.5,2450.3,0.81442]
[1730680047002,3.2078,2450.4,2449.5,3.2078]
[1730680047193,1.46902471,2449.7,2449.6,0.36753]
[1730680047395,1.46902471,2449.7,2449.6,4.44993]
[1730680048797,1.46902471,2449.9,2449.6,4.0824]
[1730680049003,1.46902471,2449.9,2449.8,0.3675]
[1730680049395,0.36748,2450.0,2449.8,0.3675]
[1730680049594,3.2078,2450.1,2449.5,3.2078]
[1730680049791,3.2078,2450.1,2449.7,0.36751]
[1730680050007,3.2078,2450.1,2449.5,3.2078]
[1730680050301,0.36748,2450.0,2449.8,0.3675]
[1730680050708,3.57526,2450.1,2449.9,0.36748]
[1730680051013,3.57526,2450.1,2449.9,0.36749]
[1730680051305,0.36748,2450.0,2449.8,0.36749]
[1730680051906,3.2078,2450.1,2449.5,3.2078]
[1730680052100,0.3675,2449.9,2449.6,0.36753]
[1730680052606,3.18681514,2449.9,2449.3,0.8561]
[1730680052800,3.18681514,2449.9,2449.3,4.0639]
[1730680052999,3.55430514,2449.9,2449.6,0.36752]
[1730680053199,3.55430514,2449.9,2449.3,4.0639]
[1730680053501,0.4282,2450.0,2449.8,0.36749]
[1730680053710,3.57527,2450.1,2449.9,0.36748]
[1730680053910,0.36748,2450.0,2449.8,0.36749]
[1730680054206,3.18681514,2449.9,2449.8,0.36749]
[1730680055809,3.2078,2450.4,2449.8,4.0816]
[1730680056013,3.61001514,2450.6,2449.9,3.6728]
[1730680056306,3.61001514,2450.6,2450.1,3.2078]
[1730680056307,3.55420514,2450.6,2450.1,3.2078]
[1730680056509,3.55420514,2450.6,2450.4,0.36741]
[1730680056996,3.18681514,2450.6,2450.4,0.36741]
[1730680057204,0.3674,2450.5,2450.3,0.36742]
[1730680057419,3.55420514,2450.6,2450.3,0.36742]
[1730680058804,3.55420514,2450.6,2450.0,3.6731]
[1730680058805,3.18681514,2450.6,2450.0,3.6731]
[1730680059006,0.3674,2450.5,2450.3,0.36742]
[1730680059208,3.55420514,2450.6,2450.3,0.36742]
[1730680059504,3.55420514,2450.6,2450.0,3.6731]
[1730680059911,3.55420514,2450.6,2450.3,0.36742]
[1730680061410,3.18681514,2450.6,2450.5,0.3674]
[1730680061912,3.18681514,2450.6,2450.0,3.6731]
[1730680062218,6.39461514,2450.8,2450.3,3.2078]
[1730680062509,6.39461514,2450.8,2450.3,0.36742]
[1730680062510,0.3674,2450.5,2450.3,0.36742]
[1730680062914,0.3674,2450.5,2450.4,0.36741]
[1730680063211,3.18681514,2450.6,2450.0,3.6731]
[1730680063512,3.55423514,2450.4,2450.2,0.36743]
[1730680064208,3.55423514,2450.4,2450.0,3.6731]
[1730680064402,3.55423514,2450.4,2450.3,0.36743]
[1730680064815,3.18681514,2450.4,2450.3,0.36743]
[1730680066613,3.2078,2450.8,2450.4,0.3674]
[1730680066614,3.55420514,2450.6,2450.4,0.3674]
[1730680066812,0.36741,2450.5,2450.3,0.36742]
[1730680067108,0.36741,2450.5,2450.3,0.36741]
[1730680067714,3.18681514,2450.6,2450.3,0.36741]
[1730680067715,0.36741,2450.4,2450.3,0.36741]
[1730680069015,0.80621,2450.4,2450.3,0.36741]
[1730680069717,0.4388,2450.4,2450.3,0.36741]
[1730680070120,0.80621,2450.4,2450.3,0.36741]
[1730680070418,0.4388,2450.4,2450.3,0.36741]
[1730680071818,0.83291,2450.5,2450.3,0.36741]
[1730680072723,0.36741,2450.4,2450.3,0.36741]
[1730680073211,3.55422514,2450.4,2450.0,3.6731]
[1730680073417,3.55422514,2450.4,2450.3,0.36743]
[1730680073618,3.18681514,2450.4,2450.0,3.6731]
[1730680073820,3.18681514,2450.4,2450.2,0.36743]
[1730680074019,3.55423514,2450.4,2450.2,0.36743]
[1730680074213,3.55423514,2450.4,2450.3,0.36743]
[1730680074818,0.36743,2450.3,2450.2,0.36743]